bitfinex/quotes_BTCUSD_20251007
["timestamp","ask_amount","ask_price","bid_price","bid_amount"]
[1759801534131,0.00564825,124750.0,124740.0,0.72704075]
[1759801534742,0.00564825,124750.0,124740.0,0.41550075]
[1759801534941,0.00878825,124750.0,124740.0,0.72498075]
[1759801540613,0.00878825,124750.0,124740.0,0.41550075]
[1759801540845,0.00878825,124750.0,124740.0,0.28707269]
[1759801540982,0.00878825,124750.0,124740.0,0.51327269]
[1759801543061,0.00878825,124750.0,124740.0,0.71449669]
[1759801543656,0.00878825,124750.0,124740.0,0.51327269]
[1759801548291,0.00878825,124750.0,124740.0,0.48922268]
[1759801548987,0.00878825,124750.0,124740.0,0.17974268]
[1759801549224,0.00878825,124750.0,124740.0,0.48918268]
[1759801552618,0.00564825,124750.0,124740.0,0.49127268]
[1759801552840,0.00879825,124750.0,124740.0,0.48918268]
[1759801553923,0.00879825,124750.0,124740.0,0.40590268]
[1759801554138,0.16911889,124750.0,124740.0,0.30948]
[1759801554557,0.16911889,124750.0,124740.0,0.46981349]
[1759801555827,0.16911889,124750.0,124740.0,0.30948]
[1759801556442,0.16911889,124750.0,124730.0,0.18892308]
[1759801556643,0.16546064,124750.0,124730.0,0.18892308]
[1759801556865,0.00315,124740.0,124730.0,0.27224308]
[1759801557094,0.00522,124740.0,124730.0,0.49840308]
[1759801558756,0.00522,124740.0,124730.0,0.49940308]
[1759801558898,0.00522,124740.0,124730.0,0.49840308]
[1759801559300,0.00722,124740.0,124730.0,0.49940308]
[1759801562075,0.00753048,124740.0,124730.0,0.49962709]
[1759801565746,0.16786397,124740.0,124730.0,0.49962709]
[1759801566744,0.00753048,124740.0,124730.0,0.49962709]
[1759801568712,0.16786397,124740.0,124730.0,0.49962709]
[1759801570805,0.00753048,124740.0,124730.0,0.49962709]
[1759801574048,0.00231048,124740.0,124730.0,0.50171709]
[1759801574347,0.00438048,124740.0,124730.0,0.49962709]
[1759801574720,0.00753048,124740.0,124730.0,0.49962709]
[1759801575406,0.00438048,124740.0,124730.0,0.49962709]
[1759801575571,0.00743048,124740.0,124730.0,0.49962709]
[1759801576317,0.16776397,124740.0,124730.0,0.49962709]
[1759801576449,0.00743048,124740.0,124730.0,0.49962709]
[1759801583518,0.00439048,124740.0,124730.0,0.50171709]
[1759801583729,0.00439048,124740.0,124730.0,0.49962709]
[1759801583954,0.00744048,124740.0,124730.0,0.49962709]
[1759801584916,0.00439048,124740.0,124730.0,0.50171709]
[1759801585111,0.00439048,124740.0,124730.0,0.49962709]
[1759801585315,0.00439048,124740.0,124730.0,0.50171709]
[1759801585517,0.00439048,124740.0,124730.0,0.49962709]
[1759801585723,0.00744048,124740.0,124730.0,0.49962709]
[1759801586559,0.00439048,124740.0,124730.0,0.50171709]
[1759801586779,0.00744048,124740.0,124730.0,0.49962709]
[1759801590696,0.00231048,124740.0,124730.0,0.50171709]
[1759801591108,0.16337188,124750.0,124740.0,0.06160952]
[1759801591416,0.16564966,124750.0,124740.0,0.06160952]
[1759801592391,0.16964966,124750.0,124740.0,0.06260952]
[1759801592798,0.17064966,124750.0,124740.0,0.06260952]
[1759801598731,0.17064966,124750.0,124740.0,0.22294301]
[1759801605653,0.17064966,124750.0,124740.0,0.21794301]
[1759801607738,0.17064966,124750.0,124740.0,0.05402791]
[1759801609172,0.16033349,124740.0,124730.0,0.04483891]
[1759801609378,0.16243349,124740.0,124730.0,0.51466525]
[1759801609590,0.16243349,124740.0,124730.0,0.51670525]
[1759801609793,0.0021,124740.0,124730.0,0.51466525]
[1759801610102,0.00504,124740.0,124730.0,0.51466525]
[1759801610244,0.16051842,124750.0,124740.0,0.16033349]
[1759801610643,0.16555842,124750.0,124740.0,0.16033349]
[1759801611558,0.16561842,124750.0,124740.0,0.16337349]
[1759801611800,0.16351842,124750.0,124740.0,0.16337349]
[1759801611965,0.16661842,124750.0,124740.0,0.16337349]
[1759801612167,0.16661842,124750.0,124740.0,0.16133349]
[1759801612168,0.16955842,124750.0,124740.0,0.16133349]
[1759801620861,0.00923778,124750.0,124740.0,0.16133349]
[1759801621338,0.00419778,124750.0,124740.0,0.16337349]
[1759801621555,0.00419778,124750.0,124740.0,0.16657349]
[1759801622059,0.00419778,124750.0,124740.0,0.47285349]
[1759801622286,0.00629778,124750.0,124740.0,0.16337349]
[1759801622471,0.00629778,124750.0,124740.0,0.47281349]
[1759801624044,0.00419778,124750.0,124740.0,0.47281349]
[1759801625638,0.00419778,124750.0,124740.0,0.47601349]
[1759801626287,0.00419778,124750.0,124740.0,0.47281349]
[1759801626868,0.00629778,124750.0,124740.0,0.47281349]
[1759801627573,0.00419778,124750.0,124740.0,0.47281349]
[1759801628831,0.00419778,124750.0,124740.0,0.16337349]
[1759801629005,0.00629778,124750.0,124740.0,0.38949349]
[1759801629219,0.00629778,124750.0,124740.0,0.47281349]
[1759801630444,0.16955842,124750.0,124740.0,0.47077349]
[1759801631403,0.16955842,124750.0,124740.0,0.16133349]
[1759801631650,0.16955842,124750.0,124740.0,0.47077349]
[1759801647095,0.16955842,124750.0,124740.0,0.47278349]
[1759801647307,0.16955842,124750.0,124740.0,0.47077349]
[1759801648032,0.16661842,124750.0,124740.0,0.47278349]
[1759801648544,0.16661842,124750.0,124740.0,0.47077349]
[1759801648758,0.16661842,124750.0,124740.0,0.47278349]
[1759801649543,0.00629778,124750.0,124740.0,0.47278349]
[1759801649765,0.00419778,124750.0,124740.0,1.58741949]
[1759801649991,0.00419778,124750.0,124740.0,1.61147143]
[1759801655186,0.00419778,124750.0,124740.0,1.21463643]
[1759801655399,0.00419778,124750.0,124740.0,1.52403643]
[1759801663988,0.00419778,124750.0,124740.0,1.21463643]
[1759801664192,0.00419778,124750.0,124740.0,1.52403643]
[1759801669459,0.00419778,124750.0,124740.0,1.21463643]
[1759801669633,0.00419778,124750.0,124740.0,1.52403643]
[1759801671514,0.00633778,124750.0,124740.0,1.52088643]
[1759801671755,0.00419778,124750.0,124740.0,1.52088643]
[1759801671937,0.00419778,124750.0,124740.0,1.52397643]
[1759801672405,0.00419778,124750.0,124740.0,1.21457643]
[1759801672537,0.00419778,124750.0,124740.0,1.52088643]
[1759801672738,0.00419778,124750.0,124740.0,1.42789343]
[1759801676825,0.00419778,124750.0,124740.0,1.11849343]
[1759801676975,0.00419778,124750.0,124740.0,1.42789343]
[1759801677776,0.00419778,124750.0,124740.0,1.11849343]
[1759801678066,0.00419778,124750.0,124740.0,1.42789343]
[1759801678282,0.13483479,124770.0,124760.0,0.16030779]
[1759801678497,0.13697479,124770.0,124760.0,0.38638779]
[1759801679263,0.13997479,124770.0,124760.0,0.38638779]
[1759801679734,0.15598953,124770.0,124760.0,0.38738779]
[1759801680243,0.15899953,124770.0,124760.0,0.38738779]
[1759801683333,0.15899953,124770.0,124760.0,0.16130779]
[1759801683553,0.4641834,124770.0,124760.0,0.001]
[1759801683780,0.4641834,124770.0,124760.0,0.22704]
[1759801683781,0.60979201,124770.0,124760.0,0.22704]
[1759801683981,0.6101875,124770.0,124760.0,0.22704]
[1759801684301,0.61767556,124770.0,124760.0,0.22704]
[1759801684937,1.58529206,124770.0,124760.0,0.001]
[1759801685176,1.97536306,124770.0,124760.0,0.001]
[1759801685650,1.99690545,124770.0,124760.0,0.001]
[1759801685866,0.77068838,124750.0,124740.0,0.00053446]
[1759801686075,1.50469025,124750.0,124740.0,0.00053446]
[1759801686299,1.97482087,124750.0,124740.0,0.00053446]
[1759801686499,1.99888575,124750.0,124740.0,0.00053446]
[1759801686726,2.08220575,124750.0,124740.0,0.00053446]
[1759801687802,2.09720575,124750.0,124740.0,0.00253446]
[1759801688367,2.09717813,124750.0,124740.0,0.00253446]
[1759801689204,2.08227241,124750.0,124740.0,0.00253446]
[1759801690363,2.08221048,124750.0,124740.0,0.00253446]
[1759801690610,0.34,124720.0,124700.0,0.06536749]
[1759801690830,0.16039778,124690.0,124680.0,0.14868749]
[1759801691032,0.16554778,124690.0,124680.0,0.31144749]
[1759801691233,0.16554778,124690.0,124680.0,0.06536749]
[1759801691435,0.16042073,124680.0,124650.0,0.22573304]
[1759801691608,0.00214,124660.0,124650.0,0.22573304]
[1759801691962,0.00214,124660.0,124650.0,0.90187239]
[1759801692307,0.00214,124660.0,124650.0,0.8395949]
[1759801692495,0.2465559,124670.0,124660.0,0.16043638]
[1759801692714,0.2486959,124670.0,124660.0,0.16043638]
[1759801693655,0.08827206,124670.0,124660.0,0.16043638]
[1759801693834,0.24869557,124670.0,124660.0,0.16043638]
[1759801694239,0.25169557,124670.0,124660.0,0.17143638]
[1759801695048,0.09127206,124670.0,124660.0,0.17343638]
[1759801696225,0.25169557,124670.0,124660.0,0.17343638]
[1759801696986,0.25169557,124670.0,124660.0,0.17501987]
[1759801699564,0.09127206,124670.0,124660.0,0.17501987]
[1759801701338,0.25169557,124670.0,124660.0,0.17501987]
[1759801703301,0.24868557,124670.0,124660.0,0.17707987]
[1759801703481,0.25167557,124670.0,124660.0,0.17501987]
[1759801703674,0.24868557,124670.0,124660.0,0.17707987]
[1759801703873,0.08612206,124670.0,124660.0,0.18030987]
[1759801704288,0.24852557,124670.0,124660.0,0.17707987]
[1759801704741,0.25151557,124670.0,124660.0,0.17501987]
[1759801705906,0.09109206,124670.0,124660.0,0.17501987]
[1759801706340,0.25151557,124670.0,124660.0,0.17501987]
[1759801707094,0.09109206,124670.0,124660.0,0.17501987]
[1759801707224,0.25151557,124670.0,124660.0,0.17501987]
[1759801707638,0.09109206,124670.0,124660.0,0.17501987]
[1759801707839,0.25151557,124670.0,124660.0,0.17501987]
[1759801708673,0.25151557,124670.0,124660.0,0.48457987]
[1759801708878,0.32402964,124670.0,124660.0,0.48457987]
[1759801709290,0.25151557,124670.0,124660.0,0.48457987]
[1759801712172,0.25151557,124670.0,124660.0,0.01458349]
[1759801712368,0.68127912,124670.0,124660.0,0.01458349]
[1759801712552,0.69840246,124670.0,124660.0,0.23514349]
[1759801712753,0.77839926,124670.0,124660.0,0.23514349]
[1759801713360,0.77839926,124670.0,124660.0,0.01258349]
[1759801713619,1.1368448,124670.0,124660.0,0.00158349]
[1759801713855,1.18516348,124670.0,124660.0,0.01558349]
[1759801714401,1.16371794,124670.0,124660.0,0.01558349]
[1759801715286,1.20684341,124670.0,124660.0,0.01558349]
[1759801715518,1.20679132,124670.0,124660.0,0.01558349]
[1759801716409,1.20679265,124670.0,124660.0,0.01558349]
[1759801717371,0.98241317,124670.0,124660.0,0.01558349]
[1759801717578,0.75621317,124670.0,124660.0,0.01558349]
[1759801718173,1.16366718,124670.0,124660.0,0.01558349]
[1759801719045,0.67621637,124670.0,124660.0,0.01558349]
[1759801719285,0.67322637,124670.0,124660.0,0.01763349]
[1759801719488,1.09812681,124670.0,124660.0,0.01558349]
[1759801719901,1.12677229,124670.0,124660.0,0.01558349]
[1759801720086,1.08364682,124670.0,124660.0,0.01558349]
[1759801720225,1.16364362,124670.0,124660.0,0.01558349]
[1759801720436,1.20676909,124670.0,124660.0,0.01558349]
[1759801721541,1.17812361,124670.0,124660.0,0.01558349]
[1759801722390,1.20677907,124670.0,124660.0,0.01558349]
[1759801723593,1.20682954,124670.0,124660.0,0.01558349]
[1759801726143,1.17817408,124670.0,124660.0,0.01558349]
[1759801728905,1.15409898,124670.0,124660.0,0.01558349]
[1759801732612,1.11097351,124670.0,124660.0,0.01558349]
[1759801732823,1.26847414,124670.0,124660.0,0.01558349]
[1759801732977,0.56789039,124660.0,124650.0,0.00049735]
[1759801733184,1.03232579,124660.0,124650.0,0.00049735]
[1759801733391,1.03741579,124660.0,124650.0,0.00069537]
[1759801734715,1.04041579,124660.0,124650.0,0.01169537]
[1759801734929,1.04241579,124660.0,124650.0,0.01169537]
[1759801736573,1.06649539,124660.0,124650.0,0.01169537]
[1759801736770,1.12782608,124660.0,124650.0,0.01169537]
[1759801737504,1.12781102,124660.0,124650.0,0.01169537]
[1759801737708,1.12785102,124660.0,124650.0,0.01169537]
[1759801738266,1.11352856,124660.0,124650.0,0.01169537]
[1759801738476,1.15647797,124660.0,124650.0,0.01169537]
[1759801739264,1.11352856,124660.0,124650.0,0.01169537]
[1759801740580,0.50046213,124640.0,124630.0,0.0002]
[1759801740768,1.33695655,124640.0,124630.0,0.00034908]
[1759801740974,1.81448086,124640.0,124630.0,0.00034908]
[1759801741179,2.22193487,124640.0,124630.0,0.00034908]
[1759801741391,0.600475,124630.0,124620.0,0.0002]
[1759801741596,0.600475,124630.0,124610.0,0.0002]
[1759801741597,0.16048788,124620.0,124610.0,0.0002]
[1759801741808,0.16048788,124620.0,124610.0,0.00024969]
[1759801741809,0.7168026,124620.0,124610.0,0.00024969]
[1759801742014,0.54348123,124620.0,124610.0,0.00024969]
[1759801742222,0.54669293,124620.0,124610.0,0.00024969]
[1759801742418,0.61952273,124620.0,124610.0,0.00024969]
[1759801742619,1.0507371,124620.0,124610.0,0.00024969]
[1759801742829,1.07935135,124620.0,124610.0,0.00024969]
[1759801743315,1.07189871,124620.0,124610.0,0.00024969]
[1759801743531,1.04628446,124620.0,124610.0,0.00024969]
[1759801744038,1.05728446,124620.0,124610.0,0.00024969]
[1759801744495,1.03583721,124620.0,124610.0,0.00024969]
[1759801745322,1.05728446,124620.0,124610.0,0.00024969]
[1759801745562,1.03583721,124620.0,124610.0,0.00024969]
[1759801746026,1.07135981,124620.0,124610.0,0.00024969]
[1759801746254,1.09280706,124620.0,124610.0,0.00024969]
[1759801746479,1.07135981,124620.0,124610.0,0.00024969]
[1759801748132,1.09280706,124620.0,124610.0,0.00024969]
[1759801748332,1.07135981,124620.0,124610.0,0.00024969]
[1759801749305,1.09280706,124620.0,124610.0,0.00024969]
[1759801749515,1.07135981,124620.0,124610.0,0.00024969]
[1759801750316,1.09280706,124620.0,124610.0,0.00024969]
[1759801750470,1.07135981,124620.0,124610.0,0.00024969]
[1759801751125,1.09280706,124620.0,124610.0,0.00024969]
[1759801751524,1.09280706,124620.0,124610.0,0.00104204]
[1759801754809,1.09278872,124620.0,124610.0,0.00104204]
[1759801755753,1.46495572,124620.0,124610.0,1e-08]
[1759801755982,1.57238282,124620.0,124610.0,1e-08]
[1759801756160,1.61533223,124620.0,124610.0,1e-08]
[1759801756361,1.57238282,124620.0,124610.0,1e-08]
[1759801756814,1.34570282,124620.0,124610.0,1e-08]
[1759801757023,1.55574282,124620.0,124610.0,1e-08]
[1759801757227,1.34570427,124620.0,124610.0,1e-08]
[1759801757443,1.65574427,124620.0,124610.0,1e-08]
[1759801758206,1.69869368,124620.0,124610.0,1e-08]
[1759801758911,1.72884558,124620.0,124610.0,1e-08]
[1759801759115,1.39019133,124620.0,124610.0,1e-08]
[1759801759341,1.70023133,124620.0,124610.0,1e-08]
[1759801760448,1.57388192,124620.0,124610.0,1e-08]
[1759801760687,1.70013287,124620.0,124610.0,1e-08]
[1759801761518,1.65732192,124620.0,124610.0,1e-08]
[1759801762820,1.57388192,124620.0,124610.0,1e-08]
[1759801763152,1.65732192,124620.0,124610.0,1e-08]
[1759801764257,1.71482255,124620.0,124610.0,1e-08]
[1759801765459,0.56795477,124610.0,124600.0,0.0002]
[1759801765663,1.03999637,124610.0,124600.0,0.00031964]
[1759801765992,1.12861637,124610.0,124600.0,0.00051777]
[1759801766198,1.15270788,124610.0,124600.0,0.00051777]
[1759801766654,1.15266788,124610.0,124600.0,0.00051777]
[1759801766867,0.74003387,124610.0,124600.0,0.00571777]
[1759801767049,0.75821387,124610.0,124600.0,0.00051777]
[1759801767288,1.16566788,124610.0,124600.0,0.00051777]
[1759801767701,1.16766788,124610.0,124600.0,0.00051777]
[1759801768698,0.85762788,124610.0,124600.0,0.00051777]
[1759801768850,1.08422788,124610.0,124600.0,0.00051777]
[1759801769086,0.93990314,124610.0,124600.0,0.00051777]
[1759801770118,0.99740377,124610.0,124600.0,0.00051777]
[1759801770303,0.93990314,124610.0,124600.0,0.00051777]
[1759801770712,0.98806314,124610.0,124600.0,0.00051777]
[1759801770906,0.93990314,124610.0,124600.0,0.00051777]
[1759801773035,0.16055229,124570.0,124560.0,0.13144251]
[1759801773256,0.16055229,124570.0,124560.0,0.13361177]
[1759801773460,0.16055229,124570.0,124560.0,0.1344046]
[1759801773618,0.16055102,124580.0,124560.0,0.06903711]
[1759801773799,0.26384642,124580.0,124560.0,0.06824428]
[1759801773999,0.24672308,124580.0,124560.0,0.06824428]
[1759801774233,0.16055229,124570.0,124560.0,0.07024428]
[1759801774660,0.26079642,124580.0,124560.0,0.06824428]
[1759801774862,0.30449537,124580.0,124560.0,0.06824428]
[1759801775206,0.16555229,124570.0,124560.0,0.07024428]
[1759801775960,0.16055229,124570.0,124560.0,0.07024428]
[1759801776436,0.32161871,124580.0,124560.0,0.07024428]
[1759801776656,0.30449537,124580.0,124570.0,0.00296]
[1759801776792,0.30449537,124580.0,124570.0,0.00505]
[1759801777254,0.30654537,124580.0,124570.0,0.00209]
[1759801777784,0.30654537,124580.0,124570.0,0.00309]
[1759801778364,0.31354537,124580.0,124570.0,0.00309]
[1759801778571,0.31149537,124580.0,124570.0,0.00309]
[1759801778800,0.31149537,124580.0,124570.0,0.00605]
[1759801778994,0.31149537,124580.0,124570.0,0.00368458]
[1759801779212,0.31149537,124580.0,124570.0,0.00664458]
[1759801779629,0.31354537,124580.0,124570.0,0.00368458]
[1759801779978,0.31149537,124580.0,124570.0,0.00368458]
[1759801780141,0.31149537,124580.0,124570.0,0.00664458]
[1759801780352,0.31354537,124580.0,124570.0,0.00368458]
[1759801781277,0.32655492,124580.0,124570.0,0.00159458]
[1759801782302,0.32130492,124580.0,124570.0,0.00664458]
[1759801782507,0.32335492,124580.0,124570.0,0.00159458]
[1759801782914,0.32335492,124580.0,124570.0,0.00368458]
[1759801783421,0.32655492,124580.0,124570.0,0.00159458]
[1759801783761,0.32130492,124580.0,124570.0,0.00664458]
[1759801783975,0.32335492,124580.0,124570.0,0.00368458]
[1759801784408,0.32655492,124580.0,124570.0,0.00368458]
[1759801785229,0.31674537,124580.0,124570.0,0.00368458]
[1759801785463,0.31149537,124580.0,124570.0,0.00368458]
[1759801785625,0.31352537,124580.0,124570.0,0.00368458]
[1759801785884,0.007,124580.0,124570.0,1.58246487]
[1759801786084,0.007,124580.0,124570.0,1.25077587]
[1759801786416,0.007,124580.0,124570.0,1.47741587]
[1759801788035,0.007,124580.0,124570.0,1.67389793]
[1759801788242,0.007,124580.0,124570.0,1.98397793]
[1759801788452,0.007,124580.0,124570.0,2.00806175]
[1759801788856,0.007,124580.0,124570.0,1.98397793]
[1759801801434,0.007,124580.0,124570.0,1.98385793]
[1759801803517,0.007,124580.0,124570.0,1.67389793]
[1759801803665,0.007,124580.0,124570.0,1.98381793]
[1759801804040,0.007,124580.0,124570.0,1.67389793]
[1759801804241,0.00903,124580.0,124570.0,0.92219087]
[1759801804485,0.00903,124580.0,124570.0,0.24763687]
[1759801804741,0.00903,124580.0,124570.0,0.47206687]
[1759801804742,0.01204,124580.0,124570.0,0.47206687]
[1759801805150,0.007,124580.0,124570.0,0.47712687]
[1759801805977,0.007,124580.0,124570.0,0.97936687]
[1759801806188,0.007,124580.0,124570.0,0.62036687]
[1759801813457,0.007,124580.0,124570.0,1.04348893]
[1759801814287,0.007,124580.0,124570.0,1.04248893]
[1759801814719,0.00053515,124610.0,124600.0,0.16051364]
[1759801814919,0.00053515,124610.0,124600.0,0.38711364]
[1759801815034,0.00053515,124610.0,124600.0,0.39217364]
[1759801815446,0.00053515,124610.0,124600.0,0.38916364]
[1759801815761,0.16103591,124610.0,124600.0,0.39209364]
[1759801815965,0.00053515,124610.0,124600.0,0.3922429]
[1759801816351,0.01153515,124610.0,124600.0,0.3922429]
[1759801817119,0.17203591,124610.0,124600.0,0.3922429]
[1759801818171,0.17413591,124610.0,124600.0,0.1627129]
[1759801818400,0.20849173,124610.0,124600.0,0.3893129]
[1759801818633,0.29470379,124610.0,124600.0,0.00014926]
[1759801819058,0.29470379,124610.0,124600.0,0.22670926]
[1759801819969,0.29470379,124610.0,124600.0,0.22674926]
[1759801820655,0.29470379,124610.0,124600.0,0.3872629]
[1759801821216,0.26034797,124610.0,124600.0,0.22674926]
[1759801826071,0.26034797,124610.0,124600.0,0.3872629]
[1759801826646,0.26034797,124610.0,124600.0,0.22674926]
[1759801829321,0.26034797,124610.0,124600.0,0.3872629]
[1759801833275,0.26034797,124610.0,124600.0,0.22674926]
[1759801834309,0.26034797,124610.0,124600.0,0.3872629]
[1759801835360,0.26034797,124610.0,124600.0,0.22674926]
[1759801837888,0.26034797,124610.0,124600.0,0.3872629]
[1759801839467,0.26034797,124610.0,124600.0,0.22674926]
[1759801839707,0.30323399,124610.0,124600.0,0.22674926]
[1759801843410,0.25725797,124610.0,124600.0,0.22883926]
[1759801843982,0.26050797,124610.0,124600.0,0.22674926]
[1759801847396,0.26050797,124610.0,124600.0,0.00014926]
[1759801848672,0.47694797,124610.0,124600.0,0.00014926]
[1759801849072,0.49198797,124610.0,124600.0,0.00014926]
[1759801849432,0.57198477,124610.0,124600.0,0.00014926]
[1759801854872,0.34550477,124610.0,124600.0,0.00014926]
[1759801855071,0.57198477,124610.0,124600.0,0.00014926]
[1759801856159,0.26015797,124610.0,124600.0,0.00229926]
[1759801856360,0.26015797,124610.0,124600.0,0.00545926]
[1759801856743,0.26015797,124610.0,124600.0,0.23193926]
[1759801857982,0.26015797,124610.0,124600.0,0.3924529]
[1759801859080,0.26210797,124610.0,124600.0,0.3924529]
[1759801859497,0.26015797,124610.0,124600.0,0.3924529]
[1759801859655,0.26210797,124610.0,124600.0,0.3924529]
[1759801860301,0.26210797,124610.0,124600.0,0.22881926]
[1759801860758,0.26518797,124610.0,124600.0,0.22881926]
[1759801862801,0.26210797,124610.0,124600.0,0.22881926]
[1759801863157,0.26518797,124610.0,124600.0,0.22881926]
[1759801866002,0.26210797,124610.0,124600.0,0.22881926]
[1759801866367,0.16051364,124600.0,124590.0,0.16052587]
[1759801866595,0.16051364,124600.0,124590.0,0.16275575]
[1759801867271,0.16051364,124600.0,124590.0,0.1627564]
[1759801867485,0.16554364,124600.0,124590.0,0.22651988]
[1759801867714,0.30263586,124600.0,124590.0,0.22651988]
[1759801868145,0.2616657,124600.0,124590.0,0.22651988]
[1759801868543,0.2616657,124600.0,124590.0,7.988e-05]
[1759801879069,0.2585857,124600.0,124590.0,0.00203988]
[1759801879666,0.2618357,124600.0,124590.0,0.00203988]
[1759801880024,0.2566357,124600.0,124590.0,0.00203988]
[1759801880216,0.013,124600.0,124590.0,0.1642464]
[1759801881074,0.013,124600.0,124590.0,0.1625664]
[1759801882558,0.17351364,124600.0,124590.0,0.1625664]
[1759801882779,0.013,124600.0,124590.0,0.1625664]
[1759801883773,0.17351364,124600.0,124590.0,0.1625664]
[1759801884378,0.013,124600.0,124590.0,0.1625664]
[1759801884583,0.17351364,124600.0,124590.0,0.1625664]
[1759801886669,0.013,124600.0,124590.0,0.1625664]
[1759801887040,0.013,124600.0,124590.0,0.1642464]
[1759801888757,0.013,124600.0,124590.0,0.1625664]
[1759801892867,0.17351364,124600.0,124590.0,0.1625664]
[1759801894369,0.17567364,124600.0,124590.0,0.1625664]
[1759801894590,0.17892364,124600.0,124590.0,0.1625664]
[1759801895583,0.01516,124600.0,124590.0,0.1625664]
[1759801895796,0.013,124600.0,124590.0,0.1625664]
[1759801898672,0.013,124600.0,124590.0,0.1642464]
[1759801910432,0.013,124600.0,124590.0,0.9908564]
[1759801910673,0.013,124600.0,124590.0,1.41397846]
[1759801910808,0.013,124600.0,124590.0,1.74785802]
[1759801911417,0.00053515,124610.0,124600.0,0.16051364]
[1759801911640,0.00053515,124610.0,124600.0,1.09062664]
[1759801911858,0.00053515,124610.0,124600.0,1.09259664]
[1759801912195,0.00053515,124610.0,124600.0,1.1166762]
[1759801912823,0.01153515,124610.0,124600.0,1.1176762]
[1759801921688,0.01153515,124610.0,124600.0,0.9219242]
[1759801921905,0.01153515,124610.0,124600.0,0.6121242]
[1759801922110,0.01153515,124610.0,124600.0,0.7921232]
[1759801922308,0.01153515,124610.0,124600.0,0.7904432]
[1759801922592,0.01153515,124610.0,124600.0,0.7921232]
[1759801922796,0.01153515,124610.0,124600.0,0.7904432]
[1759801923212,0.01153515,124610.0,124600.0,0.7921232]
[1759801924506,0.01153515,124610.0,124600.0,0.7904432]
[1759801924788,0.01153515,124610.0,124600.0,0.7070032]
[1759801925013,0.01153515,124610.0,124600.0,0.7920832]
[1759801926164,0.01153515,124610.0,124600.0,0.7904032]
[1759801926985,0.01153515,124610.0,124600.0,0.7920832]
[1759801931253,0.01153515,124610.0,124600.0,0.7904032]
[1759801932067,0.01153515,124610.0,124600.0,0.7920832]
[1759801932450,0.01153515,124610.0,124600.0,0.7904032]
[1759801932840,0.01153515,124610.0,124600.0,0.7920832]
[1759801934318,0.01153515,124610.0,124600.0,0.7904032]
[1759801934524,0.01153515,124610.0,124600.0,0.7920832]
[1759801935281,0.01153515,124610.0,124600.0,0.7904032]
[1759801935719,0.00090172,124610.0,124600.0,0.7920832]
[1759801938368,0.00090172,124610.0,124600.0,0.7904032]
[1759801939947,0.00090172,124610.0,124600.0,0.7920832]
[1759801940493,0.00090172,124610.0,124600.0,0.7070032]
[1759801940737,0.00090172,124610.0,124600.0,0.7904032]
[1759801941756,0.00090172,124610.0,124600.0,0.7920832]
[1759801943284,0.00090172,124610.0,124600.0,0.7904032]
[1759801944331,0.00090172,124610.0,124600.0,0.7920832]
[1759801944539,0.00090172,124610.0,124600.0,0.4973232]
[1759801946455,0.00090172,124610.0,124600.0,0.1855932]
[1759801946456,0.00599172,124610.0,124600.0,0.1855932]
[1759801946669,0.00599172,124610.0,124600.0,0.4953532]
[1759801947207,0.00090172,124610.0,124600.0,0.4973932]
[1759801953901,0.00090172,124610.0,124600.0,0.4990732]
[1759801954449,0.00090172,124610.0,124600.0,0.4973932]
[1759801957992,0.00090172,124610.0,124600.0,0.49298437]
[1759801964986,0.00090172,124610.0,124600.0,0.18322437]
[1759801965193,0.00090172,124610.0,124600.0,0.49298437]
[1759801966086,0.00290172,124610.0,124600.0,0.18322437]
[1759801966289,0.00290172,124610.0,124600.0,0.49298437]
[1759801966489,0.00090172,124610.0,124600.0,0.49298437]
[1759801972180,0.00090172,124610.0,124600.0,0.49294437]
[1759801975546,0.00290172,124610.0,124600.0,0.18322437]
[1759801975749,0.00090172,124610.0,124600.0,0.49294437]
[1759801981059,0.16642248,124610.0,124600.0,0.001]
[1759801981263,0.65728227,124610.0,124600.0,0.001]
[1759801981467,0.24954454,124610.0,124600.0,0.2112]
[1759801981683,0.65728227,124610.0,124600.0,0.001]
[1759801981891,0.65728227,124610.0,124600.0,0.22732]
[1759801982099,0.2736293,124610.0,124600.0,0.22732]
[1759801982506,0.3536261,124610.0,124600.0,0.001]
[1759801982708,0.3536261,124610.0,124600.0,0.22732]
[1759801982948,0.3536261,124610.0,124600.0,0.22632]
[1759801983738,0.35272438,124610.0,124600.0,0.22632]
[1759801984093,0.16051364,124600.0,124590.0,0.22639988]
[1759801984297,0.21453744,124600.0,124590.0,0.22639988]
[1759801984541,0.21755744,124600.0,124590.0,0.22639988]
[1759801985142,0.22455744,124600.0,124590.0,0.22639988]
[1759801987186,0.22455744,124600.0,124590.0,0.3869264]
[1759801987590,0.22455744,124600.0,124590.0,0.22639988]
[1759801987878,0.17253364,124600.0,124590.0,0.22639988]
[1759801988504,0.17253364,124600.0,124590.0,7.988e-05]
[1759801988682,0.17253364,124600.0,124590.0,0.22643988]
[1759801993557,0.2556557,124600.0,124590.0,7.988e-05]
[1759801993761,0.74339023,124600.0,124590.0,7.988e-05]
[1759801993904,1.08339023,124600.0,124590.0,7.988e-05]
[1759801994104,1.10747818,124600.0,124590.0,7.988e-05]
[1759801994513,1.10047818,124600.0,124590.0,7.988e-05]
[1759801994713,1.10947818,124600.0,124590.0,7.988e-05]
[1759801994958,1.11047818,124600.0,124590.0,7.988e-05]
[1759801996216,1.39654929,124600.0,124590.0,7.988e-05]
[1759801998612,1.17018929,124600.0,124590.0,7.988e-05]
[1759801998819,1.39654929,124600.0,124590.0,7.988e-05]
[1759802001255,1.17018929,124600.0,124590.0,7.988e-05]
[1759802001403,1.39654929,124600.0,124590.0,7.988e-05]
[1759802007554,1.17018929,124600.0,124590.0,7.988e-05]
[1759802007855,1.39654929,124600.0,124590.0,7.988e-05]
[1759802009984,1.80428702,124600.0,124590.0,7.988e-05]
[1759802010224,1.82145818,124600.0,124590.0,7.988e-05]
[1759802010427,1.41372045,124600.0,124590.0,7.988e-05]
[1759802013109,1.61813912,124600.0,124590.0,7.988e-05]
[1759802015292,1.63305701,124600.0,124590.0,7.988e-05]
[1759802015852,0.94094381,124600.0,124590.0,7.988e-05]
[1759802016184,1.55310021,124600.0,124590.0,7.988e-05]
[1759802016385,1.32670021,124600.0,124590.0,7.988e-05]
[1759802016768,1.55310021,124600.0,124590.0,7.988e-05]
[1759802018870,1.23210412,124600.0,124590.0,7.988e-05]
[1759802019806,1.61817912,124600.0,124590.0,7.988e-05]
[1759802020051,1.00602272,124600.0,124590.0,7.988e-05]
[1759802020228,1.61817912,124600.0,124590.0,7.988e-05]
[1759802020762,0.69962592,124600.0,124590.0,7.988e-05]
[1759802020932,0.56383476,124600.0,124590.0,0.00222988]
[1759802021146,0.56383476,124600.0,124590.0,0.00390988]
[1759802021342,0.56596476,124600.0,124590.0,7.988e-05]
[1759802021543,0.56893476,124600.0,124590.0,7.988e-05]
[1759802022422,0.33743476,124600.0,124590.0,0.00222988]
[1759802022767,0.33956476,124600.0,124590.0,0.00222988]
[1759802022909,0.34253476,124600.0,124590.0,7.988e-05]